[Event "World Prestigious University 2019"]
[Site "Tianjin"]
[Date "2019.11.26"]
[Round "3.7"]
[White "Theodorou, Nikolas"]
[Black "Li, Ethan"]
[Result "1/2-1/2"]
[WhiteElo "2555"]
[BlackElo "2209"]
[PlyCount "67"]
[EventDate "2019.11.26"]
[EventType "team-tourn"]
[EventCountry "CHN"]
[TimeControl "1500+10"]
[WhiteClock "0:09:44"]
[BlackClock "0:04:24"]

1. d4 {[%emt 0:00:00]} Nf6 {[%emt 0:00:00]} 2. c4 {[%emt 0:00:00]} e6 {[%emt 0:00:00]} 3. g3 {[%emt 0:00:00]} d5 {[%emt 0:00:00]} 4. Bg2 {[%emt 0:00:00]} dxc4 {[%emt 0:00:03]} 5. Nf3 {[%emt 0:00:01]} Bd7 {[%emt 0:00:03]} 6. Ne5 {[%emt 0:02:14]} Bc6 {[%emt 0:00:02]} 7. Nxc6 {[%emt 0:00:02]} Nxc6 {[%emt 0:00:03]} 8. O-O {[%emt 0:00:03]} Qd7 {[%emt 0:00:25]} 9. Nd2 {[%emt 0:00:08]} Nxd4 {[%emt 0:01:22]} 10. Nxc4 {[%emt 0:01:01]} Rd8 {[%emt 0:01:32]} 11. Bf4 {[%emt 0:02:29]} Be7 {[%emt 0:04:35]} 12. e3 {[%emt 0:00:52]} Qb5 {[%emt 0:00:59]} 13. exd4 {[%emt 0:02:30]} Qxc4 {[%emt 0:00:04]} 14. Rc1 {[%emt 0:00:02]} Qxd4 {[%emt 0:01:04]} 15. Qxd4 {[%emt 0:00:09]} Rxd4 {[%emt 0:00:02]} 16. Rxc7 {[%emt 0:00:07]} Rd7 {[%emt 0:00:26]} 17. Rxb7 {[%emt 0:02:16]} Rxb7 {[%emt 0:00:23]} 18. Bxb7 {[%emt 0:00:03]} O-O {[%emt 0:00:19]} 19. Rc1 {[%emt 0:00:28]} h6 {[%emt 0:01:34]} 20. a3 {[%emt 0:00:58]} g5 {[%emt 0:03:07]} 21. Be3 {[%emt 0:01:23]} Rb8 {[%emt 0:00:07]} 22. Rc8+ {[%emt 0:01:05]} Rxc8 {[%emt 0:00:02]} 23. Bxc8 {[%emt 0:00:03]} a5 {[%emt 0:00:01]} 24. Bb6 {[%emt 0:00:08]} a4 {[%emt 0:00:02]} 25. Bd4 {[%emt 0:00:02]} Ne4 {[%emt 0:00:49]} 26. Bd7 {[%emt 0:03:06]} Bc5 {[%emt 0:00:08]} 27. Be5 {[%emt 0:02:01]} f6 {[%emt 0:01:25]} 28. Bxe6+ {[%emt 0:02:00]} Kg7 {[%emt 0:00:17]} 29. Bc3 {[%emt 0:00:54]} Nxf2 {[%emt 0:00:53]} 30. Kg2 {[%emt 0:00:39]} Nd1 {[%emt 0:00:37]} 31. Bd7 {[%emt 0:01:05]} Nxc3 {[%emt 0:00:13]} 32. bxc3 {[%emt 0:00:02]} Bxa3 {[%emt 0:00:03]} 33. Bxa4 {[%emt 0:00:03]} f5 {[%emt 0:00:06]} 34. h3 {[%emt 0:00:22]} 1/2-1/2

[Event "World Prestigious University 2019"]
[Site "Tianjin"]
[Date "2019.11.26"]
[Round "3.10"]
[White "Isakov, Michael"]
[Black "Bibby, Simon"]
[Result "1-0"]
[WhiteElo "2162"]
[BlackElo "2167"]
[PlyCount "71"]
[EventDate "2019.11.26"]
[EventType "team-tourn"]
[EventCountry "CHN"]
[TimeControl "1500+10"]
[WhiteClock "0:00:41"]
[BlackClock "0:02:46"]

1. d4 {[%emt 0:00:00]} d6 {[%emt 0:00:00]} 2. Nf3 {[%emt 0:00:00]} Nf6 {[%emt 0:00:00]} 3. c4 {[%emt 0:00:00]} g6 {[%emt 0:00:00]} 4. Nc3 {[%emt 0:00:00]} Bf5 {[%emt 0:00:00]} 5. Qb3 {[%emt 0:01:34]} b6 {[%emt 0:00:01]} 6. g3 {[%emt 0:00:22]} Nc6 {[%emt 0:00:30]} 7. Bg2 {[%emt 0:02:16]} Bg7 {[%emt 0:01:30]} 8. O-O {[%emt 0:00:52]} O-O {[%emt 0:00:07]} 9. Qd1 {[%emt 0:02:36]} Rb8 {[%emt 0:07:27]} 10. d5 {[%emt 0:03:31]} Na5 {[%emt 0:00:47]} 11. Nd2 {[%emt 0:00:05]} e5 {[%emt 0:00:47]} 12. e4 {[%emt 0:01:47]} Bd7 {[%emt 0:00:18]} 13. Qe2 {[%emt 0:02:08]} h5 {[%emt 0:00:53]} 14. Nf3 {[%emt 0:02:04]} Nh7 {[%emt 0:05:47]} 15. Bd2 {[%emt 0:01:08]} f5 {[%emt 0:00:25]} 16. Nh4 {[%emt 0:02:24]} Be8 {[%emt 0:03:00]} 17. b4 {[%emt 0:00:52]} Nb7 {[%emt 0:00:01]} 18. exf5 {[%emt 0:00:15]} gxf5 {[%emt 0:00:03]} 19. Bf3 {[%emt 0:00:01]} a5 {[%emt 0:03:20]} 20. a3 {[%emt 0:00:05]} Qf6 {[%emt 0:00:58]} 21. Bxh5 {[%emt 0:00:05]} Nd8 {[%emt 0:00:11]} 22. Bxe8 {[%emt 0:00:47]} Rxe8 {[%emt 0:00:01]} 23. Qh5 {[%emt 0:00:01]} Nf7 {[%emt 0:00:12]} 24. Qxf5 {[%emt 0:00:13]} e4 {[%emt 0:01:08]} 25. Qxf6 {[%emt 0:00:34]} Bxf6 {[%emt 0:00:04]} 26. Kh1 {[%emt 0:03:00]} Ne5 {[%emt 0:00:31]} 27. Nb5 {[%emt 0:00:36]} Nxc4 {[%emt 0:00:40]} 28. Bc3 {[%emt 0:00:01]} Bxc3 {[%emt 0:00:30]} 29. Nxc3 {[%emt 0:00:01]} Kf7 {[%emt 0:00:07]} 30. Nb5 {[%emt 0:00:19]} axb4 {[%emt 0:00:27]} 31. axb4 {[%emt 0:00:05]} Re7 {[%emt 0:00:00]} 32. Rac1 {[%emt 0:00:07]} Nd2 {[%emt 0:00:05]} 33. Rfd1 {[%emt 0:00:02]} Nf3 {[%emt 0:00:03]} 34. Nxc7 {[%emt 0:00:15]} Rc8 {[%emt 0:00:06]} 35. Nb5 {[%emt 0:00:05]} Nhg5 {[%emt 0:00:05]} 36. Nxd6+ {[%emt 0:00:03]} 1-0

[Event "World Prestigious University 2019"]
[Site "Tianjin"]
[Date "2019.11.26"]
[Round "3.11"]
[White "Hirao, Satoshi"]
[Black "Lu, Andrew H"]
[Result "0-1"]
[WhiteElo "1958"]
[BlackElo "2071"]
[PlyCount "128"]
[EventDate "2019.11.26"]
[EventType "team-tourn"]
[EventCountry "CHN"]
[TimeControl "1500+10"]
[WhiteClock "0:01:18"]
[BlackClock "0:00:21"]

1. e4 {[%emt 0:00:00]} c5 {[%emt 0:00:00]} 2. Nf3 {[%emt 0:00:00]} d6 {[%emt 0:00:00]} 3. d4 {[%emt 0:00:00]} cxd4 {[%emt 0:00:00]} 4. Nxd4 {[%emt 0:00:00]} Nf6 {[%emt 0:00:00]} 5. Nc3 {[%emt 0:00:02]} g6 {[%emt 0:00:00]} 6. Be3 {[%emt 0:00:25]} Bg7 {[%emt 0:00:00]} 7. Bc4 {[%emt 0:00:12]} Nc6 {[%emt 0:00:01]} 8. f3 {[%emt 0:00:35]} O-O {[%emt 0:00:16]} 9. Qd2 {[%emt 0:00:00]} Bd7 {[%emt 0:00:17]} 10. Bb3 {[%emt 0:00:03]} Rc8 {[%emt 0:00:20]} 11. h4 {[%emt 0:01:56]} h5 {[%emt 0:00:11]} 12. O-O-O {[%emt 0:00:25]} Ne5 {[%emt 0:09:52]} 13. Nd5 {[%emt 0:02:28]} b5 {[%emt 0:00:00]} 14. g4 {[%emt 0:02:13]} hxg4 {[%emt 0:00:01]} 15. h5 {[%emt 0:05:56]} Nxd5 {[%emt 0:00:00]} 16. Bxd5 {[%emt 0:00:07]} e6 {[%emt 0:00:00]} 17. hxg6 {[%emt 0:06:17]} Nxg6 {[%emt 0:00:49]} 18. Bb3 {[%emt 0:02:34]} gxf3 {[%emt 0:04:40]} 19. Qh2 {[%emt 0:01:14]} Re8 {[%emt 0:00:04]} 20. Nxf3 {[%emt 0:01:02]} Qf6 {[%emt 0:01:48]} 21. Nd4 {[%emt 0:00:04]} Qe5 {[%emt 0:01:52]} 22. Qh7+ {[%emt 0:02:03]} Kf8 {[%emt 0:00:01]} 23. Kb1 {[%emt 0:00:51]} Ke7 {[%emt 0:00:26]} 24. Qh2 {[%emt 0:02:11]} Qxh2 {[%emt 0:02:02]} 25. Rxh2 {[%emt 0:00:00]} Rh8 {[%emt 0:00:20]} 26. Rf2 {[%emt 0:00:00]} Bh6 {[%emt 0:00:10]} 27. Bxh6 {[%emt 0:00:00]} Rxh6 {[%emt 0:00:01]} 28. Rdf1 {[%emt 0:00:00]} Ne5 {[%emt 0:00:16]} 29. c3 {[%emt 0:01:04]} Rch8 {[%emt 0:00:49]} 30. Bc2 {[%emt 0:00:00]} Rh1 {[%emt 0:00:55]} 31. b3 {[%emt 0:00:04]} Rxf1+ {[%emt 0:01:09]} 32. Rxf1 {[%emt 0:00:00]} Rh3 {[%emt 0:00:24]} 33. Ne2 {[%emt 0:00:00]} Re3 {[%emt 0:00:09]} 34. Rf2 {[%emt 0:00:00]} Bc6 {[%emt 0:00:07]} 35. Nd4 {[%emt 0:00:00]} Rxc3 {[%emt 0:00:17]} 36. Kb2 {[%emt 0:00:00]} Re3 {[%emt 0:00:05]} 37. Nxc6+ {[%emt 0:00:00]} Nxc6 {[%emt 0:00:01]} 38. Bd1 {[%emt 0:00:00]} Nd4 {[%emt 0:00:32]} 39. Bh5 {[%emt 0:00:00]} f5 {[%emt 0:00:59]} 40. exf5 {[%emt 0:00:00]} Nxf5 {[%emt 0:00:03]} 41. Rc2 {[%emt 0:00:00]} Kd7 {[%emt 0:00:29]} 42. Bg4 {[%emt 0:00:26]} a6 {[%emt 0:00:54]} 43. Rf2 {[%emt 0:00:00]} Re5 {[%emt 0:00:08]} 44. Rh2 {[%emt 0:00:00]} d5 {[%emt 0:00:02]} 45. Rh7+ {[%emt 0:00:00]} Ne7 {[%emt 0:00:01]} 46. Kc2 {[%emt 0:00:08]} Kd6 {[%emt 0:00:05]} 47. Kd2 {[%emt 0:00:06]} Nc6 {[%emt 0:00:11]} 48. Rh8 {[%emt 0:00:09]} a5 {[%emt 0:00:10]} 49. Be2 {[%emt 0:00:08]} d4 {[%emt 0:00:18]} 50. Ra8 {[%emt 0:00:10]} Rc5 {[%emt 0:00:23]} 51. Re8 {[%emt 0:00:23]} e5 {[%emt 0:00:30]} 52. Rh8 {[%emt 0:00:05]} e4 {[%emt 0:00:13]} 53. Rh6+ {[%emt 0:00:03]} Kd5 {[%emt 0:00:01]} 54. Rh5+ {[%emt 0:00:02]} Ne5 {[%emt 0:00:02]} 55. a3 {[%emt 0:00:16]} d3 {[%emt 0:00:15]} 56. Bd1 {[%emt 0:00:01]} Kd4 {[%emt 0:00:07]} 57. Rh4 {[%emt 0:00:14]} Rc6 {[%emt 0:00:35]} 58. a4 {[%emt 0:00:27]} bxa4 {[%emt 0:00:00]} 59. bxa4 {[%emt 0:00:15]} Rg6 {[%emt 0:00:00]} 60. Bh5 {[%emt 0:00:10]} Nc4+ {[%emt 0:00:17]} 61. Ke1 {[%emt 0:00:07]} d2+ {[%emt 0:00:25]} 62. Ke2 {[%emt 0:00:12]} Rg1 {[%emt 0:00:05]} 63. Kf2 {[%emt 0:00:08]} d1=Q {[%emt 0:00:12]} 64. Bxd1 {[%emt 0:00:03]} Rxd1 {[%emt 0:00:02]} 0-1

[Event "World Prestigious University 2019"]
[Site "Tianjin"]
[Date "2019.11.26"]
[Round "3.12"]
[White "Papanek, Ella"]
[Black "Balashov, Yuri S"]
[Result "1-0"]
[WhiteElo "1777"]
[BlackElo "2465"]
[PlyCount "127"]
[EventDate "2019.11.26"]
[EventType "team-tourn"]
[EventCountry "CHN"]
[TimeControl "1500+10"]
[WhiteClock "0:03:32"]
[BlackClock "0:26:08"]

1. d4 {[%emt 0:00:00]} d5 {[%emt 0:00:00]} 2. c4 {[%emt 0:00:00]} e6 {[%emt 0:00:12]} 3. Nc3 {[%emt 0:00:00]} Nf6 {[%emt 0:00:40]} 4. cxd5 {[%emt 0:00:00]} exd5 {[%emt 0:00:22]} 5. Bg5 {[%emt 0:00:02]} Bb4 {[%emt 0:01:03]} 6. e3 {[%emt 0:00:38]} Bxc3+ {[%emt 0:00:11]} 7. bxc3 {[%emt 0:00:01]} Bf5 {[%emt 0:00:30]} 8. Qb3 {[%emt 0:00:22]} b6 {[%emt 0:00:58]} 9. Bxf6 {[%emt 0:00:56]} Qxf6 {[%emt 0:02:50]} 10. Qxd5 {[%emt 0:00:20]} Nc6 {[%emt 0:01:49]} 11. Bb5 {[%emt 0:00:21]} Bd7 {[%emt 0:01:27]} 12. Qe4+ {[%emt 0:00:29]} Qe7 {[%emt 0:01:37]} 13. Bxc6 {[%emt 0:00:12]} Qxe4 {[%emt 0:01:37]} 14. Bxe4 {[%emt 0:00:02]} Rd8 {[%emt 0:00:20]} 15. Nf3 {[%emt 0:00:03]} O-O {[%emt 0:00:04]} 16. O-O {[%emt 0:00:10]} Rfe8 {[%emt 0:00:21]} 17. Bd3 {[%emt 0:00:04]} a5 {[%emt 0:00:11]} 18. Ne5 {[%emt 0:00:04]} Ba4 {[%emt 0:00:27]} 19. Bc4 {[%emt 0:00:23]} Rf8 {[%emt 0:00:15]} 20. Bb3 {[%emt 0:00:12]} Bb5 {[%emt 0:00:17]} 21. c4 {[%emt 0:00:04]} Ba6 {[%emt 0:00:03]} 22. Rfd1 {[%emt 0:00:07]} Bb7 {[%emt 0:00:33]} 23. f3 {[%emt 0:00:07]} Rfe8 {[%emt 0:01:18]} 24. c5 {[%emt 0:00:04]} Re7 {[%emt 0:01:39]} 25. Rac1 {[%emt 0:00:42]} b5 {[%emt 0:00:19]} 26. c6 {[%emt 0:00:05]} Bc8 {[%emt 0:00:26]} 27. Kf2 {[%emt 0:02:05]} a4 {[%emt 0:00:31]} 28. Bc2 {[%emt 0:00:02]} Rde8 {[%emt 0:00:21]} 29. e4 {[%emt 0:00:09]} h6 {[%emt 0:01:28]} 30. Rb1 {[%emt 0:00:14]} Ba6 {[%emt 0:00:48]} 31. Bd3 {[%emt 0:00:02]} Rb8 {[%emt 0:00:49]} 32. Nd7 {[%emt 0:00:01]} Ra8 {[%emt 0:00:50]} 33. Bxb5 {[%emt 0:00:03]} Re6 {[%emt 0:00:26]} 34. d5 {[%emt 0:00:02]} Rd6 {[%emt 0:00:34]} 35. e5 {[%emt 0:00:06]} Rxd7 {[%emt 0:00:45]} 36. cxd7 {[%emt 0:00:02]} Bxb5 {[%emt 0:00:28]} 37. Rxb5 {[%emt 0:00:02]} Rd8 {[%emt 0:00:05]} 38. e6 {[%emt 0:00:01]} Kf8 {[%emt 0:00:32]} 39. Rc5 {[%emt 0:00:11]} Ke7 {[%emt 0:00:27]} 40. Re1 {[%emt 0:00:07]} fxe6 {[%emt 0:01:43]} 41. dxe6 {[%emt 0:00:02]} Kd6 {[%emt 0:00:18]} 42. Rc4 {[%emt 0:00:01]} Rb8 {[%emt 0:00:22]} 43. e7 {[%emt 0:00:04]} Kxd7 {[%emt 0:00:08]} 44. Rd4+ {[%emt 0:00:01]} Ke8 {[%emt 0:00:03]} 45. Rd8+ {[%emt 0:00:05]} Rxd8 {[%emt 0:00:04]} 46. exd8=Q+ {[%emt 0:00:03]} Kxd8 {[%emt 0:00:03]} 47. Re4 {[%emt 0:00:02]} Kc8 {[%emt 0:00:05]} 48. Rxa4 {[%emt 0:00:02]} c6 {[%emt 0:00:15]} 49. Ke3 {[%emt 0:00:01]} Kc7 {[%emt 0:00:02]} 50. Kd4 {[%emt 0:00:02]} Kd6 {[%emt 0:00:06]} 51. f4 {[%emt 0:00:02]} c5+ {[%emt 0:00:05]} 52. Kc4 {[%emt 0:00:01]} Kc6 {[%emt 0:00:10]} 53. Ra6+ {[%emt 0:00:02]} Kb7 {[%emt 0:00:13]} 54. Rg6 {[%emt 0:00:02]} h5 {[%emt 0:00:10]} 55. Kxc5 {[%emt 0:00:03]} Kc7 {[%emt 0:00:06]} 56. Rxg7+ {[%emt 0:00:02]} Kd8 {[%emt 0:00:03]} 57. Kc6 {[%emt 0:00:02]} h4 {[%emt 0:00:03]} 58. h3 {[%emt 0:00:02]} Ke8 {[%emt 0:00:04]} 59. Ra7 {[%emt 0:00:02]} Kf8 {[%emt 0:00:04]} 60. Kd6 {[%emt 0:00:01]} Kg8 {[%emt 0:00:02]} 61. Ke6 {[%emt 0:00:01]} Kf8 {[%emt 0:00:08]} 62. a4 {[%emt 0:00:02]} Kg8 {[%emt 0:00:06]} 63. Kf6 {[%emt 0:00:02]} Kf8 {[%emt 0:00:02]} 64. Ra8# {[%emt 0:00:02]} 1-0

[Event "World Prestigious University 2019"]
[Site "Tianjin"]
[Date "2019.11.26"]
[Round "3.13"]
[White "Weichao, Chu"]
[Black "Wang, Yue"]
[Result "0-1"]
[WhiteElo "2423"]
[BlackElo "2674"]
[PlyCount "50"]
[EventDate "2019.11.26"]
[EventType "team-tourn"]
[EventCountry "CHN"]
[TimeControl "1500+10"]
[WhiteClock "0:11:16"]
[BlackClock "0:06:45"]

1. d4 {[%emt 0:00:00]} Nf6 {[%emt 0:00:00]} 2. c4 {[%emt 0:00:00]} e6 {[%emt 0:00:04]} 3. g3 {[%emt 0:00:13]} c5 {[%emt 0:02:20]} 4. d5 {[%emt 0:00:02]} exd5 {[%emt 0:00:01]} 5. cxd5 {[%emt 0:00:02]} d6 {[%emt 0:00:02]} 6. Nc3 {[%emt 0:00:05]} g6 {[%emt 0:00:03]} 7. Bg2 {[%emt 0:00:02]} Bg7 {[%emt 0:00:02]} 8. Nf3 {[%emt 0:00:04]} O-O {[%emt 0:00:07]} 9. O-O {[%emt 0:00:03]} Re8 {[%emt 0:00:08]} 10. Re1 {[%emt 0:00:49]} a6 {[%emt 0:00:54]} 11. a4 {[%emt 0:00:03]} b6 {[%emt 0:00:01]} 12. Nd2 {[%emt 0:02:07]} Nbd7 {[%emt 0:00:16]} 13. h3 {[%emt 0:02:13]} Rb8 {[%emt 0:03:10]} 14. Nc4 {[%emt 0:01:33]} Ne5 {[%emt 0:00:00]} 15. Nxe5 {[%emt 0:00:02]} Rxe5 {[%emt 0:00:03]} 16. e4 {[%emt 0:00:30]} Re8 {[%emt 0:00:25]} 17. Qd3 {[%emt 0:00:47]} Nd7 {[%emt 0:02:05]} 18. f4 {[%emt 0:00:53]} b5 {[%emt 0:00:00]} 19. axb5 {[%emt 0:00:48]} axb5 {[%emt 0:00:34]} 20. Be3 {[%emt 0:01:59]} b4 {[%emt 0:04:35]} 21. Na4 {[%emt 0:04:28]} Ra8 {[%emt 0:04:41]} 22. e5 {[%emt 0:02:41]} dxe5 {[%emt 0:00:40]} 23. d6 {[%emt 0:02:41]} exf4 {[%emt 0:02:57]} 24. Bxa8 {[%emt 0:00:37]} fxe3 {[%emt 0:00:12]} 25. Kh2 {[%emt 0:00:31]} Bd4 {[%emt 0:00:00]} 0-1

[Event "World Prestigious University 2019"]
[Site "Tianjin"]
[Date "2019.11.26"]
[Round "3.14"]
[White "Li, Yankai"]
[Black "Wei, Siyu"]
[Result "1/2-1/2"]
[WhiteElo "2432"]
[BlackElo "2106"]
[PlyCount "134"]
[EventDate "2019.11.26"]
[EventType "team-tourn"]
[EventCountry "CHN"]
[TimeControl "1500+10"]
[WhiteClock "0:01:50"]
[BlackClock "0:01:51"]

1. e4 {[%emt 0:00:08]} c5 {[%emt 0:00:00]} 2. Nf3 {[%emt 0:00:02]} e6 {[%emt 0:00:00]} 3. d4 {[%emt 0:00:01]} cxd4 {[%emt 0:00:00]} 4. Nxd4 {[%emt 0:00:01]} Nf6 {[%emt 0:00:02]} 5. Nc3 {[%emt 0:00:07]} d6 {[%emt 0:00:04]} 6. Bc4 {[%emt 0:00:22]} a6 {[%emt 0:00:05]} 7. Bb3 {[%emt 0:00:01]} b5 {[%emt 0:02:04]} 8. O-O {[%emt 0:00:04]} Be7 {[%emt 0:00:05]} 9. Qf3 {[%emt 0:06:06]} Qc7 {[%emt 0:00:02]} 10. Qg3 {[%emt 0:00:47]} O-O {[%emt 0:00:06]} 11. Bh6 {[%emt 0:00:31]} Ne8 {[%emt 0:00:04]} 12. Rad1 {[%emt 0:00:43]} Kh8 {[%emt 0:03:27]} 13. Bg5 {[%emt 0:00:02]} b4 {[%emt 0:01:39]} 14. Bxe7 {[%emt 0:01:45]} Qxe7 {[%emt 0:00:04]} 15. Na4 {[%emt 0:00:45]} Bd7 {[%emt 0:05:45]} 16. Nb6 {[%emt 0:00:46]} Ra7 {[%emt 0:00:02]} 17. Nxd7 {[%emt 0:00:12]} Rxd7 {[%emt 0:00:05]} 18. c3 {[%emt 0:00:43]} Rb7 {[%emt 0:01:55]} 19. f4 {[%emt 0:03:23]} bxc3 {[%emt 0:01:18]} 20. Qxc3 {[%emt 0:01:23]} Rc7 {[%emt 0:02:05]} 21. Qb4 {[%emt 0:03:02]} Nd7 {[%emt 0:02:44]} 22. f5 {[%emt 0:01:47]} e5 {[%emt 0:02:16]} 23. f6 {[%emt 0:00:01]} Ndxf6 {[%emt 0:00:04]} 24. Nf5 {[%emt 0:00:01]} Qd7 {[%emt 0:01:02]} 25. Nxd6 {[%emt 0:01:16]} Nxd6 {[%emt 0:00:02]} 26. Rxd6 {[%emt 0:00:44]} Qb5 {[%emt 0:00:17]} 27. Qxb5 {[%emt 0:01:10]} axb5 {[%emt 0:00:01]} 28. Re1 {[%emt 0:00:17]} h6 {[%emt 0:00:39]} 29. Re2 {[%emt 0:01:04]} Rfc8 {[%emt 0:00:35]} 30. h3 {[%emt 0:00:00]} Kg8 {[%emt 0:00:04]} 31. Kf2 {[%emt 0:00:00]} Rc6 {[%emt 0:00:34]} 32. Rxc6 {[%emt 0:00:09]} Rxc6 {[%emt 0:00:01]} 33. Ke3 {[%emt 0:01:15]} Kf8 {[%emt 0:00:36]} 34. Rc2 {[%emt 0:00:46]} Rxc2 {[%emt 0:00:06]} 35. Bxc2 {[%emt 0:00:00]} Ke7 {[%emt 0:00:10]} 36. a3 {[%emt 0:00:12]} Ne8 {[%emt 0:01:00]} 37. Kd3 {[%emt 0:00:03]} Kd6 {[%emt 0:00:22]} 38. Bb3 {[%emt 0:00:00]} f6 {[%emt 0:00:05]} 39. Bf7 {[%emt 0:00:40]} Nc7 {[%emt 0:00:03]} 40. Kc3 {[%emt 0:00:01]} Na6 {[%emt 0:00:22]} 41. b4 {[%emt 0:00:31]} Kc6 {[%emt 0:00:47]} 42. Be8+ {[%emt 0:00:22]} Kb6 {[%emt 0:00:02]} 43. Kd3 {[%emt 0:00:09]} Nc7 {[%emt 0:00:06]} 44. Bd7 {[%emt 0:00:03]} Ka6 {[%emt 0:00:02]} 45. Ke3 {[%emt 0:00:07]} Na8 {[%emt 0:00:01]} 46. Be6 {[%emt 0:00:08]} Nb6 {[%emt 0:00:26]} 47. h4 {[%emt 0:00:01]} Kb7 {[%emt 0:00:17]} 48. h5 {[%emt 0:00:04]} Kc6 {[%emt 0:00:05]} 49. Bb3 {[%emt 0:00:13]} Nc8 {[%emt 0:00:13]} 50. Bd5+ {[%emt 0:00:13]} Kc7 {[%emt 0:00:10]} 51. Kf3 {[%emt 0:00:05]} Nb6 {[%emt 0:00:07]} 52. Bb3 {[%emt 0:00:09]} Nc8 {[%emt 0:00:17]} 53. Bc2 {[%emt 0:00:27]} Nd6 {[%emt 0:00:16]} 54. Bd3 {[%emt 0:00:02]} Kd7 {[%emt 0:00:04]} 55. Ke3 {[%emt 0:00:00]} Kc6 {[%emt 0:00:00]} 56. Kf3 {[%emt 0:00:00]} Kd7 {[%emt 0:00:00]} 57. Ke2 {[%emt 0:00:20]} Kc6 {[%emt 0:00:00]} 58. Kd2 {[%emt 0:00:00]} Nc8 {[%emt 0:00:00]} 59. Kc3 {[%emt 0:00:09]} Nb6 {[%emt 0:00:00]} 60. Bc2 {[%emt 0:00:03]} Kd6 {[%emt 0:00:25]} 61. Bb3 {[%emt 0:00:01]} Kc6 {[%emt 0:00:02]} 62. Kd3 {[%emt 0:00:03]} Kd6 {[%emt 0:00:15]} 63. Ke3 {[%emt 0:00:01]} Kc6 {[%emt 0:00:15]} 64. Kf3 {[%emt 0:00:04]} Nc8 {[%emt 0:00:21]} 65. Bd5+ {[%emt 0:00:04]} Kc7 {[%emt 0:00:16]} 66. Kg4 {[%emt 0:00:18]} Nd6 {[%emt 0:00:11]} 67. Kf3 {[%emt 0:00:22]} Nc8 {[%emt 0:00:00]} 1/2-1/2

[Event "World Prestigious University 2019"]
[Site "Tianjin"]
[Date "2019.11.26"]
[Round "3.15"]
[White "Lu, Hongyi"]
[Black "Xiao, Yiyi"]
[Result "0-1"]
[WhiteElo "1862"]
[BlackElo "2306"]
[PlyCount "72"]
[EventDate "2019.11.26"]
[EventType "team-tourn"]
[EventCountry "CHN"]
[TimeControl "1500+10"]
[WhiteClock "0:00:52"]
[BlackClock "0:00:16"]

1. e4 {[%emt 0:00:00]} c5 {[%emt 0:00:18]} 2. Nf3 {[%emt 0:00:00]} e6 {[%emt 0:00:07]} 3. d4 {[%emt 0:00:03]} cxd4 {[%emt 0:00:02]} 4. Nxd4 {[%emt 0:00:03]} Nc6 {[%emt 0:00:02]} 5. Nc3 {[%emt 0:01:10]} Qc7 {[%emt 0:00:02]} 6. Be2 {[%emt 0:00:21]} a6 {[%emt 0:00:08]} 7. O-O {[%emt 0:00:47]} Nf6 {[%emt 0:00:05]} 8. a4 {[%emt 0:01:18]} Bb4 {[%emt 0:00:17]} 9. Nxc6 {[%emt 0:02:13]} bxc6 {[%emt 0:00:49]} 10. Bf3 {[%emt 0:01:30]} O-O {[%emt 0:02:24]} 11. Be3 {[%emt 0:02:07]} Rb8 {[%emt 0:02:25]} 12. h3 {[%emt 0:02:52]} d5 {[%emt 0:01:50]} 13. exd5 {[%emt 0:02:21]} cxd5 {[%emt 0:00:19]} 14. Ne2 {[%emt 0:00:41]} Bc5 {[%emt 0:00:58]} 15. Bxc5 {[%emt 0:02:19]} Qxc5 {[%emt 0:00:02]} 16. Rb1 {[%emt 0:00:33]} e5 {[%emt 0:00:19]} 17. Ng3 {[%emt 0:01:07]} e4 {[%emt 0:01:16]} 18. Be2 {[%emt 0:00:08]} d4 {[%emt 0:00:07]} 19. Re1 {[%emt 0:01:11]} a5 {[%emt 0:01:18]} 20. Bb5 {[%emt 0:00:35]} Bb7 {[%emt 0:00:07]} 21. Qd2 {[%emt 0:00:14]} Rfd8 {[%emt 0:01:15]} 22. Rbd1 {[%emt 0:00:31]} Rbc8 {[%emt 0:01:53]} 23. Qxa5 {[%emt 0:01:24]} Qxc2 {[%emt 0:01:52]} 24. Qd2 {[%emt 0:01:22]} Qc5 {[%emt 0:03:44]} 25. b4 {[%emt 0:00:16]} Qd5 {[%emt 0:00:56]} 26. Rc1 {[%emt 0:02:15]} h5 {[%emt 0:00:17]} 27. Bf1 {[%emt 0:00:29]} h4 {[%emt 0:00:08]} 28. Ne2 {[%emt 0:00:06]} d3 {[%emt 0:03:30]} 29. Nc3 {[%emt 0:00:27]} Qd4 {[%emt 0:01:05]} 30. b5 {[%emt 0:00:12]} Nd7 {[%emt 0:00:33]} 31. a5 {[%emt 0:00:23]} Ne5 {[%emt 0:00:03]} 32. Red1 {[%emt 0:00:58]} Nc4 {[%emt 0:00:07]} 33. Qa2 {[%emt 0:00:10]} d2 {[%emt 0:01:06]} 34. Rc2 {[%emt 0:00:05]} e3 {[%emt 0:00:01]} 35. Bxc4 {[%emt 0:00:14]} Rxc4 {[%emt 0:00:15]} 36. Ne2 {[%emt 0:00:19]} Qe4 {[%emt 0:00:28]} 0-1

[Event "World Prestigious University 2019"]
[Site "Tianjin"]
[Date "2019.11.26"]
[Round "3.16"]
[White "Kukhmazov, Arsen"]
[Black "Green, Michael L"]
[Result "1-0"]
[WhiteElo "2377"]
[BlackElo "2073"]
[PlyCount "73"]
[EventDate "2019.11.26"]
[EventType "team-tourn"]
[EventCountry "CHN"]
[TimeControl "1500+10"]
[WhiteClock "0:00:11"]
[BlackClock "0:19:55"]

1. d4 {[%emt 0:00:00]} Nf6 {[%emt 0:00:00]} 2. c4 {[%emt 0:00:00]} c5 {[%emt 0:00:00]} 3. d5 {[%emt 0:00:00]} e6 {[%emt 0:00:00]} 4. Nc3 {[%emt 0:00:00]} exd5 {[%emt 0:00:00]} 5. cxd5 {[%emt 0:00:00]} d6 {[%emt 0:00:00]} 6. Nf3 {[%emt 0:00:00]} g6 {[%emt 0:00:00]} 7. Bf4 {[%emt 0:00:00]} Bg7 {[%emt 0:00:22]} 8. Qa4+ {[%emt 0:00:00]} Bd7 {[%emt 0:01:35]} 9. Qb3 {[%emt 0:00:00]} b5 {[%emt 0:03:03]} 10. Bxd6 {[%emt 0:00:00]} Qb6 {[%emt 0:00:33]} 11. Be5 {[%emt 0:00:01]} O-O {[%emt 0:00:23]} 12. e3 {[%emt 0:00:02]} b4 {[%emt 0:01:21]} 13. Nb1 {[%emt 0:01:14]} Rd8 {[%emt 0:04:22]} 14. Nbd2 {[%emt 0:00:41]} Bb5 {[%emt 0:01:23]} 15. Bc4 {[%emt 0:00:52]} Nbd7 {[%emt 0:01:34]} 16. Bg3 {[%emt 0:00:37]} a5 {[%emt 0:01:16]} 17. O-O {[%emt 0:02:03]} Nh5 {[%emt 0:04:00]} 18. Bh4 {[%emt 0:00:44]} Re8 {[%emt 0:01:35]} 19. Rad1 {[%emt 0:00:34]} Ne5 {[%emt 0:02:43]} 20. Nxe5 {[%emt 0:00:23]} Bxe5 {[%emt 0:00:21]} 21. a4 {[%emt 0:01:55]} Ba6 {[%emt 0:00:47]} 22. Bxa6 {[%emt 0:00:17]} Qxa6 {[%emt 0:00:14]} 23. Nc4 {[%emt 0:00:02]} Bf6 {[%emt 0:00:54]} 24. Bxf6 {[%emt 0:00:09]} Nxf6 {[%emt 0:00:02]} 25. f3 {[%emt 0:00:02]} Rad8 {[%emt 0:00:42]} 26. e4 {[%emt 0:00:01]} Nd7 {[%emt 0:00:13]} 27. Rfe1 {[%emt 0:00:17]} Nb6 {[%emt 0:00:44]} 28. Nxb6 {[%emt 0:00:13]} Qxb6 {[%emt 0:00:01]} 29. Qc4 {[%emt 0:00:01]} Qf6 {[%emt 0:00:46]} 30. b3 {[%emt 0:00:05]} Rc8 {[%emt 0:00:23]} 31. d6 {[%emt 0:00:04]} Re5 {[%emt 0:00:18]} 32. Rd5 {[%emt 0:00:30]} Rd8 {[%emt 0:00:30]} 33. Red1 {[%emt 0:00:08]} Qf4 {[%emt 0:00:13]} 34. Qxc5 {[%emt 0:00:15]} Rxd5 {[%emt 0:00:08]} 35. Qxd5 {[%emt 0:00:02]} Qe3+ {[%emt 0:00:07]} 36. Kh1 {[%emt 0:00:01]} Qe2 {[%emt 0:00:16]} 37. d7 {[%emt 0:00:02]} 1-0